[Event "Prague Festival-Challengers 2022"]
[Site "Prague"]
[Date "2022.06.14"]
[Round "6.5"]
[White "Hracek, Zbynek"]
[Black "Stocek, Jiri"]
[Result "1/2-1/2"]
[ECO "B66"]
[WhiteElo "2570"]
[BlackElo "2533"]
[Annotator "TA"]
[PlyCount "240"]
[EventDate "2022.06.07"]
[EventType "tourn"]
[EventCountry "CZE"]
[SourceTitle "playchess.com"]
[Source "ChessBase"]
[SourceQuality "1"]
[TimeControl "40/5400+30:1800+30"]

{[%evp 81,240,-4,0,-92,-63,-73,-79,-108,-64,-59,-70,-70,-74,-124,-114,-114,-104,-114,-87,-86,-63,-71,0,-93,-70,-100,-97,-109,-112,-103,-111,-135,-69,-68,-45,-44,-43,-43,-43,-40,-50,-66,-50,-46,-25,-29,-14,-13,-8,-8,-8,-8,-8,-8,-8,-8,-8,-13,-8,-17,-8,-42,-8,-8,-8,-24,0,0,0,0,0,0,0,0,0,0,0,0,0,0,0,-8,-8,-8,0,0,0,0,0,0,0,0,0,0,0,0,0,0,0,-8,0,-8,0,-8,-8,-8,0,-8,0,-8,0,0,0,0,0,0,0,0,0,0,0,0,0,0,0,0,0,0,0,0,0,-8,0,0,0,0,0,0,0,0,0,0,0,0,0,0,0,0,0,0,0,0,0,0,0,0,0,0,0,0,0]} 1. e4 {[%emt 0:00:03]} c5 {[%emt 0:00:25]} 2. Nf3 {[%emt 0:00:06]} d6 {[%emt 0:00:18]} 3. d4 {[%emt 0:00:18]} cxd4 {[%emt 0:00:05]} 4. Nxd4 {[%emt 0:00:05]} Nf6 {[%emt 0:00:06]} 5. Nc3 {[%emt 0:00:06]} Nc6 {[%emt 0:00:31]} 6. Bg5 {[%emt 0:00:20]} e6 {[%emt 0:00:35]} 7. Qd2 {[%emt 0:00:05]} Be7 {[%emt 0:01:21]} 8. O-O-O {[%emt 0:00:29]} a6 {[%emt 0:00:48]} 9. Bxf6 {[%emt 0:01:16]} gxf6 {[%emt 0:01:50]} 10. f4 {[%emt 0:00:06]} Nxd4 {[%emt 0:02:28]} 11. Qxd4 {[%emt 0:01:53]} b5 {[%emt 0:01:08]} 12. e5 {[%emt 0:07:53]} d5 {[%emt 0:00:57]} 13. Kb1 {[%emt 0:00:41]} Bd7 {[%emt 0:08:47]} 14. f5 {[%emt 0:37:01]} fxe5 {[%emt 0:04:37]} 15. Qxe5 {[%emt 0:00:04]} Bf6 {[%emt 0:00:21]} 16. Qf4 {[%emt 0:04:59]} Rc8 {[%emt 0:13:29]} 17. Bd3 {[%emt 0:17:05]} Qc7 {[%emt 0:24:16]} 18. Qh6 {[%emt 0:02:30]} Bxc3 {[%emt 0:01:52]} 19. bxc3 {[%emt 0:01:54]} Qxc3 {[%emt 0:00:21]} 20. fxe6 {[%emt 0:00:16]} Qb4+ {[%emt 0:08:15]} 21. Ka1 {[%emt 0:00:07]} Qc3+ {[%emt 0:03:34]} 22. Kb1 {[%emt 0:00:01]} Qb4+ {[%emt 0:00:13]} 23. Ka1 {[%emt 0:00:05]} Bxe6 {[%emt 0:03:43]} 24. Rhe1 {[%emt 0:02:26]} Kd7 {[%emt 0:02:35]} 25. Be4 {[%emt 0:11:50]} Qc3+ {[%emt 0:04:32]} 26. Kb1 {[%emt 0:00:01]} Rc4 {[%emt 0:05:43]} 27. Qe3 {[%emt 0:04:18]} Rb4+ {[%emt 0:04:01]} 28. Kc1 {[%emt 0:00:01]} Qb2+ {[%emt 0:00:23]} 29. Kd2 {[%emt 0:00:01]} Qd4+ {[%emt 0:01:10]} 30. Qxd4 {[%emt 0:03:24]} Rxd4+ {[%emt 0:00:04]} 31. Kc3 {[%emt 0:00:17]} Rc4+ {[%emt 0:01:39]} 32. Kb2 {[%emt 0:00:18]} Kd6 {[%emt 0:00:41]} 33. Re3 {[%emt 0:01:51]} h5 {[%emt 0:01:01]} 34. Bf3 {[%emt 0:01:51]} Rhc8 {[%emt 0:02:06]} 35. Rd2 {[%emt 0:00:28]} h4 {[%emt 0:00:25]} 36. Red3 {[%emt 0:01:53]} R8c5 {[%emt 0:00:49]} 37. Ra3 {[%emt 0:00:22]} Rc6 {[%emt 0:00:38]} 38. Rad3 {[%emt 0:00:03]} R6c5 {[%emt 0:01:02]} 39. Ra3 {[%emt 0:00:06]} Rb4+ {[%emt 0:00:45]} 40. Kc1 {[%emt 0:00:00]} Rc6 {[%emt 0:00:00]} 41. Rad3 {[%emt 0:01:01]} Rc5 {[%emt 0:03:43]} (41... Ke7 $11) 42. Ra3 $1 $17 {[%emt 0:00:07]} Ra4 {[%emt 0:14:04]} 43. Rxa4 {[%emt 0:01:03]} bxa4 {[%emt 0:00:21]} 44. Kb2 {[%emt 0:07:30]} Rc4 {[%emt 0:04:02]} 45. Be2 {[%emt 0:04:54]} Rb4+ {[%emt 0:00:23]} 46. Ka3 $1 {[%emt 0:00:06]} a5 {[%emt 0:01:16]} 47. c3 {[%emt 0:09:42]} (47. c4 $142) 47... Rf4 $17 {[%emt 0:02:46]} 48. Bb5 {[%emt 0:00:38]} Kc5 {[%emt 0:00:34]} 49. Bxa4 {[%emt 0:00:57]} Rc4 {[%emt 0:03:55]} 50. Rd3 {[%emt 0:00:58]} Rg4 {[%emt 0:01:32]} 51. Rd2 {[%emt 0:03:10]} Rc4 {[%emt 0:02:28]} 52. Rd3 $1 {[%emt 0:00:13]} Re4 {[%emt 0:00:19]} 53. Rd2 {[%emt 0:01:47]} Re3 {[%emt 0:00:31]} 54. Kb2 {[%emt 0:00:04]} Bf5 {[%emt 0:00:09]} 55. Rf2 {[%emt 0:01:32] [#]} Be4 $1 {[%emt 0:00:38]} 56. Rf6 {[%emt 0:05:00]} d4 {[%emt 0:00:51]} ({Black should play} 56... Kc4 $17 {And now ...Re2+ would win.} 57. Rf2 Re1) 57. cxd4+ $15 {[%emt 0:00:17]} Kb4 {[%emt 0:01:48]} (57... Kxd4 $5 {[%cal Re3e2]} 58. Bb5 Bxg2 59. Rxf7 Rh3 60. Rd7+ Ke5 61. Re7+ Kf4 62. Rf7+ Ke3 63. Re7+ Kf2 $17) 58. Bd1 $1 {[%emt 0:00:06]} Re1 {[%emt 0:00:45]} 59. Rb6+ {[%emt 0:03:07]} Kc4 {[%emt 0:00:05]} 60. Bb3+ {[%emt 0:00:08]} Kxd4 {[%emt 0:00:10]} 61. Rh6 {[%emt 0:01:07]} Re2+ {[%emt 0:00:40]} 62. Ka3 {[%emt 0:00:05]} Rxg2 {[%emt 0:00:34]} 63. Bxf7 {[%emt 0:00:57]} Rxh2 {[%emt 0:00:31]} 64. Ka4 {[%emt 0:00:03]} h3 {[%emt 0:01:22]} 65. Be6 {[%emt 0:00:47]} Re2 {[%emt 0:00:32]} 66. Rxh3 {[%emt 0:00:48]} Bc6+ {[%emt 0:00:10]} 67. Kxa5 {[%emt 0:00:07]} Rxe6 {[%emt 0:00:06]} 68. Kb4 {[%emt 0:00:31]} Be4 {[%emt 0:00:13]} 69. Rh4 {[%emt 0:00:11]} Rb6+ {[%emt 0:00:16]} 70. Ka5 {[%emt 0:00:06]} Rb8 {[%emt 0:00:16]} 71. Ka4 {[%emt 0:00:15]} Kd3 {[%emt 0:01:12]} 72. Ka5 {[%emt 0:00:06]} Ra8+ {[%emt 0:00:48]} 73. Kb4 {[%emt 0:00:49]} Rxa2 {[%emt 0:00:06]} 74. Kc5 {[%emt 0:00:39]} Rc2+ {[%emt 0:00:08]} 75. Kd6 {[%emt 0:00:56]} Kd4 {[%emt 0:00:11]} 76. Rf4 {[%emt 0:00:47]} Rc6+ {[%emt 0:00:17]} 77. Kd7 {[%emt 0:00:08]} Rh6 {[%emt 0:01:00]} 78. Rf1 {[%emt 0:00:21]} Ke5 {[%emt 0:00:21]} 79. Re1 {[%emt 0:00:07]} Rh7+ {[%emt 0:00:12]} 80. Ke8 {[%emt 0:00:02]} Kd5 {[%emt 0:01:25]} 81. Kf8 {[%emt 0:00:03]} Bf5 {[%emt 0:00:29]} 82. Re7 {[%emt 0:00:01]} Rh6 {[%emt 0:01:00]} 83. Kg7 {[%emt 0:00:24]} Rg6+ {[%emt 0:00:34]} 84. Kf7 {[%emt 0:00:05]} Ra6 {[%emt 0:00:36]} 85. Re1 {[%emt 0:00:05]} Be4 {[%emt 0:00:28]} 86. Rd1+ {[%emt 0:01:19]} Ke5 {[%emt 0:00:11]} 87. Re1 {[%emt 0:00:02]} Ra7+ {[%emt 0:00:35]} 88. Ke8 {[%emt 0:00:02]} Rb7 {[%emt 0:00:22]} 89. Re2 {[%emt 0:00:08]} Kd5 {[%emt 0:00:39]} 90. Kf8 {[%emt 0:00:04]} Bf5 {[%emt 0:00:48]} 91. Re7 {[%emt 0:00:03]} Rb6 {[%emt 0:00:37]} 92. Kg7 {[%emt 0:01:02]} Be4 {[%emt 0:00:38]} 93. Kf7 {[%emt 0:01:02]} Ra6 {[%emt 0:00:37]} 94. Kg7 {[%emt 0:00:19]} Kd4 {[%emt 0:00:23]} 95. Kf7 {[%emt 0:00:44]} Ke3 {[%emt 0:00:40]} 96. Rd7 {[%emt 0:01:36]} Kf4 {[%emt 0:00:30]} 97. Rd1 $1 {[%emt 0:00:04]} Ra7+ {[%emt 0:00:44]} 98. Kf6 {[%emt 0:00:18]} Ra6+ {[%emt 0:00:02]} 99. Ke7 {[%emt 0:00:08]} Ke5 {[%emt 0:00:12]} 100. Re1 {[%emt 0:00:05]} Rh6 {[%emt 0:00:19]} 101. Re2 {[%emt 0:00:04]} Rh1 {[%emt 0:00:19]} 102. Re3 {[%emt 0:00:24]} Rh7+ {[%emt 0:00:11]} 103. Ke8 {[%emt 0:00:03]} Kf5 {[%emt 0:00:35]} 104. Kd8 {[%emt 0:00:04]} Ra7 {[%emt 0:00:59]} 105. Re1 {[%emt 0:00:11]} Bc6 {[%emt 0:00:11]} 106. Re7 {[%emt 0:00:15]} Ra6 {[%emt 0:00:21]} 107. Re1 {[%emt 0:00:43]} Kf6 {[%emt 0:00:26]} 108. Kc7 {[%emt 0:00:26]} Bd5 {[%emt 0:01:08]} 109. Rd1 {[%emt 0:01:07]} Ke5 {[%emt 0:00:22]} 110. Re1+ {[%emt 0:00:06]} Kd4 {[%emt 0:00:08]} 111. Rc1 {[%emt 0:01:18]} Bc4 {[%emt 0:00:29]} 112. Kd7 {[%emt 0:00:09]} Kc5 {[%emt 0:00:06]} 113. Ke7 {[%emt 0:00:23]} Re6+ {[%emt 0:00:08]} 114. Kd7 {[%emt 0:00:54]} Re2 {[%emt 0:00:09]} 115. Kd8 {[%emt 0:03:07]} Kd5 {[%emt 0:00:36]} 116. Kd7 {[%emt 0:00:20]} Bb5+ {[%emt 0:00:44]} 117. Kc7 {[%emt 0:00:05]} Ba4 {[%emt 0:00:58]} 118. Rg1 {[%emt 0:01:05]} Re7+ {[%emt 0:01:10]} 119. Kb6 {[%emt 0:00:16]} Re6+ {[%emt 0:00:02]} 120. Ka5 {[%emt 0:00:22]} Bc2 {[%emt 0:01:00]} 1/2-1/2

[Event "Prague Festival-Challengers 2022"]
[Site "Prague"]
[Date "2022.06.15"]
[Round "7.1"]
[White "Abdusattorov, Nodirbek"]
[Black "Keymer, Vincent"]
[Result "1/2-1/2"]
[ECO "C50"]
[WhiteElo "2661"]
[BlackElo "2667"]
[Annotator "TA"]
[PlyCount "88"]
[EventDate "2022.06.07"]
[EventType "tourn"]
[EventCountry "CZE"]
[SourceTitle "playchess.com"]
[Source "ChessBase"]
[SourceQuality "1"]
[TimeControl "40/5400+30:1800+30"]

{[%evp 12,88,0,0,14,0,12,-10,-5,0,15,12,25,0,30,29,50,59,75,18,16,8,9,14,47,43,52,13,16,29,49,58,46,43,45,59,54,69,57,70,87,47,111,75,100,67,56,0,0,0,0,0,0,0,0,0,12,0,0,0,0,0,0,0,0,0,0,0,0,0,0,0,47,0,13,13,20,20,20]} 1. e4 {[%emt 0:00:08]} e5 {[%emt 0:00:04]} 2. Nf3 {[%emt 0:00:06]} Nc6 {[%emt 0:00:03]} 3. Bc4 {[%emt 0:00:09]} Nf6 {[%emt 0:00:23]} 4. d3 {[%emt 0:00:17]} Bc5 {[%emt 0:00:10]} 5. O-O {[%emt 0:00:15]} d6 {[%emt 0:07:36]} 6. Bg5 {[%emt 0:00:16]} h6 {[%emt 0:01:48]} 7. Bh4 {[%emt 0:00:10]} a6 {[%emt 0:02:15] C50: Hungarian Defence and Giuoco Pianissimo.} 8. c3 {[%emt 0:00:44]} Ba7 {[%emt 0:01:09]} 9. a4 {[%emt 0:00:26]} g5 {[%emt 0:02:36]} 10. Bg3 {[%emt 0:00:08]} O-O {[%emt 0:01:11]} 11. Na3 {[%emt 0:01:13]} Bg4 {[%emt 0:11:01]} 12. Nc2 {[%emt 0:02:36] [#]} Kh8 $146 {[%emt 0:18:58]} ({Predecessor:} 12... d5 13. exd5 Nxd5 14. d4 exd4 15. cxd4 Bh5 16. Ra3 Kh8 17. Qd2 f5 18. Be5+ Nxe5 19. Nxe5 {½-½ (45) Dragun,K (2594)-Gajewski,G (2633) Poznan 2016}) 13. Ne3 {[%emt 0:04:05]} Bxe3 {[%emt 0:01:52]} 14. fxe3 {[%emt 0:00:05]} Nh5 {[%emt 0:04:39]} 15. a5 {[%emt 0:01:15]} (15. Be1 $16) 15... Nxg3 {[%emt 0:02:28]} 16. hxg3 {[%emt 0:00:06]} Qe7 {[%emt 0:01:51]} 17. Qb3 {[%emt 0:01:02]} Rab8 {[%emt 0:01:00]} 18. Nh2 {[%emt 0:06:59]} Be6 {[%emt 0:03:24]} 19. Qd1 {[%emt 0:05:05]} Bxc4 {[%emt 0:06:27]} 20. dxc4 {[%emt 0:00:03]} Qe6 {[%emt 0:00:10]} 21. Ng4 $1 {[%emt 0:01:05] Rf6 is the strong threat.} f5 $1 {[%emt 0:04:50]} 22. exf5 {[%emt 0:02:32]} Rxf5 {[%emt 0:00:11]} 23. Rxf5 {[%emt 0:00:28]} Qxf5 {[%emt 0:00:04]} 24. Nxh6 {[%emt 0:00:16]} Qg6 {[%emt 0:01:50]} 25. Ng4 {[%emt 0:02:36]} Rf8 {[%emt 0:01:00]} 26. b4 {[%emt 0:15:33]} Ne7 {[%emt 0:02:55]} (26... Kg7 $14) 27. Qe2 {[%emt 0:05:28]} Nf5 {[%emt 0:02:03]} 28. Rf1 {[%emt 0:00:40] And now e4 would win.} e4 $1 {[%emt 0:04:39]} 29. Ne5 {[%emt 0:04:30]} Qe8 $11 {[%emt 0:06:01]} 30. Qf2 {[%emt 0:19:00][%cal Oe5g6]} Kg7 {[%emt 0:01:13] Prevents Ng6.} (30... dxe5 31. g4 $16) (30... Qxe5 $5 31. g4 Kg7 $1 32. gxf5 Rf6 $11) 31. Nd7 {[%emt 0:03:24]} Rf7 {[%emt 0:02:12]} (31... Qxd7 $5 32. g4 {[#]} Kg6 $1 $11) 32. Nf6 {[%emt 0:04:49]} Rxf6 {[%emt 0:00:04]} 33. g4 {[%emt 0:00:02]} Qh8 {[%emt 0:03:22][%cal Oh8h7]} 34. gxf5 {[%emt 0:01:01][%mdl 4096] Endgame KQR-KQR} Rh6 {[%emt 0:00:04][%csl Gh8][%cal Rh6h1]} 35. Qd2 {[%emt 0:05:42]} Rh1+ {[%emt 0:00:05]} 36. Kf2 {[%emt 0:00:03] Strongly threatening Rxh1.} Qh4+ {[%emt 0:00:08]} 37. Ke2 {[%emt 0:00:05] Hoping for Qd4+.} Qg4+ {[%emt 0:01:51]} 38. Ke1 $1 {[%emt 0:00:06]} Rxf1+ {[%emt 0:00:38]} 39. Kxf1 {[%emt 0:00:06] aiming for Qd4+.} Qxf5+ {[%emt 0:00:03] KQ-KQ} 40. Kg1 {[%emt 0:00:00]} Qe5 {[%emt 0:00:00]} 41. Qd4 {[%emt 0:04:39]} Kg6 {[%emt 0:23:00]} (41... Kf6 $11 {deserves consideration.}) 42. Kf2 {[%emt 0:02:44]} (42. Qxe5 $14 dxe5 43. c5) 42... g4 {[%emt 0:00:39] The position is equal.} 43. Qxe5 {[%emt 0:05:43]} dxe5 {[%emt 0:00:09]} 44. c5 {[%emt 0:00:15][%cal Oc5c6] Threatening mate with c6!} c6 $1 {[%emt 0:00:11] Weighted Error Value: White=0.13 (very precise) /Black=0.08 (flawless)} 1/2-1/2

[Event "Prague Festival-Challengers 2022"]
[Site "Prague"]
[Date "2022.06.15"]
[Round "7.2"]
[White "Michalik, Peter"]
[Black "Pechac, Jergus"]
[Result "1-0"]
[ECO "C67"]
[WhiteElo "2579"]
[BlackElo "2597"]
[Annotator "TA"]
[PlyCount "75"]
[EventDate "2022.06.07"]
[EventType "tourn"]
[EventCountry "CZE"]
[SourceTitle "playchess.com"]
[Source "ChessBase"]
[SourceQuality "1"]
[TimeControl "40/5400+30:1800+30"]

{[%evp 20,75,34,24,56,12,18,11,29,0,0,0,31,0,0,0,16,-15,-8,-16,-10,-24,94,98,89,96,95,83,98,14,15,14,14,10,19,15,111,111,251,259,264,264,402,389,413,393,410,416,567,553,595,618,1742,1728,1547,1533,1286,1163]} 1. e4 {[%emt 0:00:03]} e5 {[%emt 0:00:06]} 2. Nf3 {[%emt 0:00:04]} Nc6 {[%emt 0:00:04]} 3. Bb5 {[%emt 0:00:04]} Nf6 {[%emt 0:00:06]} 4. O-O {[%emt 0:00:34]} Nxe4 {[%emt 0:00:06]} 5. d4 {[%emt 0:00:04]} Nd6 {[%emt 0:00:09]} 6. Bxc6 {[%emt 0:00:04]} dxc6 {[%emt 0:00:04]} 7. dxe5 {[%emt 0:00:05]} Nf5 {[%emt 0:00:08]} 8. Qxd8+ {[%emt 0:00:04]} Kxd8 {[%emt 0:00:04]} 9. Rd1+ {[%emt 0:00:09]} Ke8 {[%emt 0:00:06]} 10. Nc3 {[%emt 0:00:05][%cal Bb1c3,Bc3e4,Be4g3][%mdl 32]} Ne7 {[%emt 0:02:04]} 11. Nd4 {[%emt 0:00:07][%cal Od4b5,Bf3d4,Bd4e2,Be2f4][%mdl 32] Strongly threatening Ndb5!} Nf5 {[%emt 0:09:09] C67: Ruy Lopez: Berlin Defence: 4 0-0 Nxe4.} 12. Nde2 {[%emt 0:00:52]} Be7 {[%emt 0:02:19]} 13. Ne4 {[%emt 0:00:56]} h6 {[%emt 0:00:52] [#] The position is equal.} 14. Nf4 $146 {[%emt 0:04:17]} ({Predecessor:} 14. b3 a5 15. a4 b6 16. Bb2 Be6 17. Nf4 h5 18. Nxe6 fxe6 19. Rd3 Rd8 20. Rxd8+ Kxd8 {1-0 (49) Dolezal,R (2374)-Kozak,M (2165) Klatovy 2019}) 14... Nh4 {[%emt 0:03:06]} 15. Re1 {[%emt 0:01:19]} Bf5 {[%emt 0:06:55]} 16. Bd2 {[%emt 0:00:30][%cal Oe4d6]} (16. Nd6+ {is more complex.} Bxd6 17. exd6+ Kd7 18. dxc7 Bxc2 19. Nh5) 16... Rd8 {[%emt 0:02:24] Prevents Nd6+.} 17. Bc3 {[%emt 0:00:10]} h5 {[%emt 0:00:53]} 18. Ng3 {[%emt 0:10:52]} Bxc2 {[%emt 0:01:28]} 19. Ngxh5 {[%emt 0:00:36]} Kf8 {[%emt 0:01:24]} 20. Rac1 {[%emt 0:00:59]} Ba4 {[%emt 0:04:44]} (20... Bf5 $11 {remains equal.}) 21. b3 {[%emt 0:08:07]} Bb5 {[%emt 0:03:08]} 22. a4 $36 {[%emt 0:00:04][%mdl 2048] White has strong initiative.} Ba6 {[%emt 0:01:02]} 23. e6 {[%emt 0:01:15]} f6 {[%emt 0:00:11] [#]} 24. Rcd1 {[%emt 0:00:30]} (24. Red1 $1 $16 {[%cal Rd1d8] Threatens to win with Rxd8+.} Rd6 25. Rxd6 cxd6 26. g3) 24... Rd6 $11 {[%emt 0:03:57]} 25. Ng3 {[%emt 0:06:30] next Ne4 is good for White.} g5 {[%emt 0:01:42]} 26. Nfh5 {[%emt 0:13:20]} Rh6 {[%emt 0:01:51]} 27. f4 {[%emt 0:00:11]} g4 {[%emt 0:07:21] [#]} (27... gxf4 $11 {keeps the balance.} 28. Nxf4 Rxd1 29. Rxd1 Bd6) 28. f5 $1 $16 {[%emt 0:11:54] White is more active.} Rxd1 {[%emt 0:01:30] Loses the game.} (28... Nxf5 $16 29. Bd2 (29. Nxf5 Rxh5 30. Nxd6 cxd6 $11) 29... Rh8) 29. Rxd1 $18 {[%emt 0:00:07]} Nxf5 {[%emt 0:00:17]} 30. Rd7 {[%emt 0:06:18]} Nd6 {[%emt 0:14:58]} (30... Nxg3 {was worth a try.} 31. Nxg3 f5) 31. Nf4 {[%emt 0:08:41] And now Bb4 would win. Pair of Knights!} b6 {[%emt 0:17:25]} 32. Rxc7 {[%emt 0:00:31]} Bb7 {[%emt 0:00:27]} 33. Bd2 {[%emt 0:05:56]} f5 {[%emt 0:03:06]} 34. Bc3 {[%emt 0:01:08] White is clearly winning.} Rh7 {[%emt 0:03:23]} 35. Be5 {[%emt 0:02:35]} Ne4 {[%emt 0:01:36]} 36. Nxe4 {[%emt 0:00:40]} fxe4 {[%emt 0:00:06]} 37. Ng6+ {[%emt 0:01:10]} Ke8 {[%emt 0:00:07]} 38. Bd6 {[%emt 0:00:13] Weighted Error Value: White=0.11 (very precise) /Black=0.39} 1-0

[Event "Prague Festival-Challengers 2022"]
[Site "Prague"]
[Date "2022.06.15"]
[Round "7.3"]
[White "Niemann, Hans Moke"]
[Black "Hracek, Zbynek"]
[Result "1-0"]
[ECO "B98"]
[WhiteElo "2656"]
[BlackElo "2570"]
[Annotator "TA"]
[PlyCount "67"]
[EventDate "2022.06.07"]
[EventType "tourn"]
[EventCountry "CZE"]
[SourceTitle "playchess.com"]
[Source "ChessBase"]
[SourceQuality "1"]
[TimeControl "40/5400+30:1800+30"]

{[%evp 15,67,25,4,29,41,16,16,0,53,-29,159,138,157,135,279,260,268,284,339,280,286,279,285,271,318,268,266,267,291,279,297,297,436,331,615,577,586,552,1122,677,806,827,29986,29986,29986,29987,29989,29990,29990,29988,29990,29990,29995,29996]} 1. e4 {[%emt 0:01:11]} c5 {[%emt 0:02:20]} 2. Nf3 {[%emt 0:00:13]} d6 {[%emt 0:00:07]} 3. d4 {[%emt 0:00:23]} cxd4 {[%emt 0:00:05]} 4. Nxd4 {[%emt 0:00:09]} Nf6 {[%emt 0:00:04]} 5. Nc3 {[%emt 0:00:08]} a6 {[%emt 0:00:38]} 6. Bg5 {[%emt 0:00:20]} e6 {[%emt 0:00:21]} 7. f4 {[%emt 0:00:30]} Be7 {[%emt 0:02:09]} 8. Qf3 {[%emt 0:00:29]} Nbd7 {[%emt 0:01:43]} 9. O-O-O {[%emt 0:00:41] B98: Sicilian Najdorf: 6 Bg5 e6 7 f4 Be7, sidelines.} h6 {[%emt 0:00:16]} 10. Bxf6 {[%emt 0:04:54]} Bxf6 {[%emt 0:01:13]} 11. Bc4 {[%emt 0:02:07][%cal Oc4e6] Hoping for Bxe6! The position is equal.} O-O {[%emt 0:11:43]} (11... Qb6 $11 12. Nb3 Qc7) 12. g4 {[%emt 0:10:21]} ({Better is} 12. h4 $14) 12... b5 $2 {[%emt 0:20:34]} (12... e5 $1 $11 13. g5 Bxg5 14. fxg5 exd4 15. Rxd4 Qxg5+ 16. Kb1 Ne5) 13. e5 $16 {[%emt 0:05:15] [#] White is much more active. The black rooks are badly placed.} Bxe5 $146 {[%emt 0:26:34]} (13... dxe5 $2 14. Nxe6 e4 15. Qxe4 fxe6 16. Bxe6+ Kh8 17. Qxa8) ({Predecessor:} 13... dxe5 14. Nxe6 fxe6 15. Bxe6+ Kh8 16. Qxa8 exf4 17. Qc6 Bxc3 18. Qxc3 f3 19. Qd2 Qb6 20. Bxd7 Rd8 21. Qf4 Bxd7 22. Rxd7 Rxd7 23. Qf8+ Kh7 24. Qf5+ {1-0 (24) Milson,S (2069)-Burrows,M (2104) Blackpool 2016}) 14. fxe5 {[%emt 0:01:46]} d5 {[%emt 0:00:21]} (14... Rb8 $16) 15. Bb3 $18 {[%emt 0:02:27]} Nxe5 {[%emt 0:06:32]} 16. Qg3 {[%emt 0:00:14]} Nc4 {[%emt 0:01:32]} 17. h4 {[%emt 0:02:06]} Qd6 {[%emt 0:01:42]} 18. Qf3 {[%emt 0:03:46]} Rb8 {[%emt 0:01:38]} 19. g5 {[%emt 0:00:27]} h5 {[%emt 0:00:11]} 20. Kb1 {[%emt 0:11:19]} ({Don't take} 20. Qxh5 $6 Qf4+ 21. Kb1 Nd2+ 22. Rxd2 Qxd2 $18) ({Don't play} 20. Bxc4 $6 bxc4 21. Rhe1 (21. Qxh5 e5 $14) 21... Bd7 $18) 20... g6 {[%emt 0:05:47]} 21. Rhe1 {[%emt 0:04:05]} Bd7 {[%emt 0:01:08]} 22. Qf6 {[%emt 0:00:31]} Rb6 {[%emt 0:03:40]} 23. Nf3 {[%emt 0:00:59]} a5 {[%emt 0:05:14]} (23... Qc5 $142 24. a3 b4) 24. Qd4 {[%emt 0:03:20] Threatens to win with Bxc4.} Qc7 {[%emt 0:01:33]} (24... Rd8 25. Qf6 Rdb8 26. Bxc4 bxc4) 25. Bxc4 {[%emt 0:06:51]} bxc4 {[%emt 0:00:11]} 26. Ne5 {[%emt 0:00:05]} Rfb8 {[%emt 0:02:36] [#]} 27. Nxf7 $1 {[%emt 0:04:10][%cal Oc3d5][%mdl 512] Nxd5! would kill now.} Kxf7 {[%emt 0:01:11]} (27... Kh7 28. Ka1) 28. Qf6+ {[%emt 0:00:08][%mdl 64] Deflection} Ke8 {[%emt 0:00:04]} 29. Qh8+ {[%emt 0:00:27] White mates.} Kf7 {[%emt 0:00:38]} 30. Qh7+ {[%emt 0:01:42]} Kf8 {[%emt 0:02:17]} 31. Rf1+ {[%emt 0:00:32]} Ke8 {[%emt 0:00:01]} 32. Qxg6+ {[%emt 0:00:24]} Ke7 {[%emt 0:00:50] [#]} 33. Nxd5+ $1 {[%emt 0:00:06][%mdl 512]} exd5 {[%emt 0:00:03]} (33... Kd6 34. Nxb6+) 34. Rf7+ {[%emt 0:00:07] Black did not feel at home in the position after the opening.  Weighted Error Value: White=0.30/Black=0.62} 1-0

[Event "Prague Festival-Challengers 2022"]
[Site "Prague"]
[Date "2022.06.15"]
[Round "7.4"]
[White "Stocek, Jiri"]
[Black "Warmerdam, Max"]
[Result "1-0"]
[ECO "E92"]
[WhiteElo "2533"]
[BlackElo "2614"]
[Annotator "TA"]
[PlyCount "59"]
[EventDate "2022.06.07"]
[EventType "tourn"]
[EventCountry "CZE"]
[SourceTitle "playchess.com"]
[Source "ChessBase"]
[SourceQuality "1"]
[TimeControl "40/5400+30:1800+30"]

{[%evp 16,59,14,39,35,20,43,31,45,35,34,27,79,33,34,19,24,0,0,0,0,0,0,-9,-15,-7,-6,-41,90,86,225,232,636,596,1586,1586,29982,1628,29983,29984,29984,29985,29985,29986,29986,29987]} 1. d4 {[%emt 0:00:15]} Nf6 {[%emt 0:00:14]} 2. Nf3 {[%emt 0:00:36]} g6 {[%emt 0:00:30]} 3. c4 {[%emt 0:01:36]} Bg7 {[%emt 0:00:06]} 4. Nc3 {[%emt 0:00:07]} O-O {[%emt 0:00:39]} 5. e4 {[%emt 0:01:13]} d6 {[%emt 0:00:05]} 6. Be2 {[%emt 0:01:30]} e5 {[%emt 0:00:07]} 7. d5 {[%emt 0:01:00]} a5 {[%emt 0:00:53]} 8. Bg5 {[%emt 0:01:22]} h6 {[%emt 0:00:24]} 9. Be3 {[%emt 0:01:41]} Ng4 {[%emt 0:01:17] E92: King's Indian: Classical: 6 Be2 e5: 7 dxe5, 7 Be3 and Petrosian System without 7...Nbd7.} 10. Bd2 $1 {[%emt 0:00:25] 10.Bd2 is better than 10.Bc1.} f5 {[%emt 0:00:47]} 11. h3 {[%emt 0:01:18]} Nf6 {[%emt 0:00:44] White is slightly better.} 12. exf5 {[%emt 0:00:45]} gxf5 {[%emt 0:00:21]} 13. g4 {[%emt 0:03:18] [#]} Ne4 $146 {[%emt 0:00:35] Inhibits g5.} (13... fxg4 $11 14. hxg4 Nxg4) ({Predecessor:} 13... Na6 14. g5 hxg5 15. Bxg5 Nc5 16. Rg1 Kh8 17. Qc2 Qe8 18. O-O-O Nfe4 19. Nb5 Qf7 {1-0 (40) Moskalenko,A (2515)-Perez Ponsa,F (2554) Chess.com INT 2021}) 14. g5 {[%emt 0:23:11]} (14. Nxe4 $1 $16 {And now gxf5 would win.} fxe4 15. Nh2) 14... Nxc3 $14 {[%emt 0:00:31]} 15. Bxc3 {[%emt 0:14:48] Hoping for Rg1.} hxg5 {[%emt 0:00:28]} 16. Qd2 {[%emt 0:00:49][%csl LRa5,LRg5]} (16. Bd2 $5 {[%cal Rd2g5]}) 16... g4 {[%emt 0:01:22]} 17. hxg4 {[%emt 0:02:55]} fxg4 {[%emt 0:01:55]} 18. Ng5 {[%emt 0:11:12]} Rf4 {[%emt 0:20:51]} 19. Ne6 {[%emt 0:02:07]} Bxe6 {[%emt 0:00:06]} 20. dxe6 {[%emt 0:00:03] Strongly threatening e7.} Nc6 {[%emt 0:11:43]} 21. O-O-O {[%emt 0:05:32]} Qe7 {[%emt 0:40:34] [#]} ({Resist} 21... Rxf2 22. Rdg1 Qf6 23. Rxg4 $16) (21... Kf8 $15 {stays ahead.}) 22. Rdg1 $1 $16 {[%emt 0:04:48]} Raf8 {[%emt 0:00:09] This costs Black the game.} (22... Rxf2 $2 23. Rxg4 Qxe6 24. Qd3 $18) (22... Qxe6 $2 23. Qxf4 exf4 24. Bxg4 $18) (22... Qf6 $16) 23. Bxg4 $18 {[%emt 0:03:39]} (23. Rxg4 Qxe6 24. Rgg1 R8f6 $11) 23... Rxc4 $2 {[%emt 0:01:39]} (23... R8f6 24. Qd5 Kf8) 24. Qd3 {[%emt 0:03:23][%csl Gh1][%cal Rd3h7]} ({Weaker is} 24. Be2 Rh4 $16) 24... Rxc3+ {[%emt 0:05:21]} 25. bxc3 {[%emt 0:04:08][%csl Gh1][%cal Rd3h7]} Rxf2 {[%emt 0:00:09]} 26. Qh7+ {[%emt 0:03:25]} Kf8 {[%emt 0:00:02]} 27. Bf5 {[%emt 0:00:36] White mates.} Qf6 {[%emt 0:05:40] [#]} 28. Rg6 $1 {[%emt 0:01:17]} Rxf5 {[%emt 0:00:06]} 29. Rxf6+ {[%emt 0:00:20]} Rxf6 {[%emt 0:00:03]} 30. Rg1 {[%emt 0:00:17] Weighted Error Value: White=0.05 (flawless) /Black=0.90} 1-0